Cogmind - Beta 16 @@@ ROGUE MODE // 2025.11.18 @ 16:57:05 // Winter2019/RPGLIKE Player: Jaegerpls Result: Destroyed by Piercing Trap Performance ------------- Evolutions (0) 0 Regions Visited (2) 400 Robots Destroyed (24) 120 Value Destroyed (612) 612 Prototype IDs (0) 0 Alien Tech Used (0) 0 Bonus (0) 0 TOTAL SCORE: 1132 Bonus ------- None Cogmind --------- Core Integrity 0/600 Matter 300/300 Energy 159/160 System Corruption 0% Temperature Cool (2) Movement Hovering (56) Location -10/Subcaves Parts ------- > --- POWER (1) -------- Light Nuclear Core > --- PROPULSION (2) --- Hover Unit Hover Unit > --- UTILITY (4) ------ Improved Heat Sink Improved Terrain Scanner Targeting Computer > --- WEAPON (2) ------- Beam Cannon Beam Cannon > --- INVENTORY (1) ---- Light Nuclear Core Peak State ------------ > --- POWER ------------ Light Nuclear Core > --- PROPULSION ------- Hover Unit Hover Unit > --- UTILITY ---------- Improved Heat Sink Improved Terrain Scanner Targeting Computer > --- WEAPON ----------- Beam Cannon Beam Cannon > --- INVENTORY -------- Light Nuclear Core [Rating: 14] Favorites ----------- Power Light Nuclear Core Engine Ion Engine Power Core Light Nuclear Core Propulsion Hover Unit Wheel Wheel Hover Unit Hover Unit Utility Improved Terrain Scanner Device Improved Terrain Scanner Processor Targeting Computer Weapon Beam Cannon Energy Gun Medium Laser Energy Cannon Beam Cannon Build | -11 -10 -10 ------- Run | Yrd Mat Sub Slots Evolved 5 | 4 1 . Power . | . . . Propulsion 1 | 1 . . Utility 3 | 2 1 . Weapon 1 | 1 . . Parts Attached 17 | 5 12 . Power 4 | 1 3 . Engine 1 | 1 . . Core 3 | . 3 . Reactor . | . . . Propulsion 4 | 1 3 . Treads . | . . . Leg . | . . . Wheel 2 | 1 1 . Hover 2 | . 2 . Flight . | . . . Utility 5 | 1 4 . Device 3 | 1 2 . Storage . | . . . Processor 2 | . 2 . Hackware . | . . . Protection . | . . . Artifact . | . . . Weapon 4 | 2 2 . Energy Gun 2 | 2 . . Energy Cannon 2 | . 2 . Ballistic Gun . | . . . Ballistic Cannon . | . . . Launcher . | . . . Special Weapon . | . . . Impact Weapon . | . . . Slashing Weapon . | . . . Piercing Weapon . | . . . Special Melee Weapon . | . . . Unidentified Prototypes . | . . . Parts Lost . | . . . Power . | . . . Propulsion . | . . . Utility . | . . . Weapon . | . . . Highest Loss Streak . | . . . To Critical Strikes . | . . . Average Backups . | . . 1 Power . | . . 1 Propulsion . | . . . Utility . | . . . Weapon . | . . . Tool/Special . | . . . Unused Backups . | . . . Power . | . . . Propulsion . | . . . Utility . | . . . Weapon . | . . . Tool/Special . | . . . Average Slot Usage (%) 79 | . 76 88 Engine 1 | . 2 . Core 9 | . 9 11 Wheel 2 | . 3 . Hover 16 | . 14 22 Device 17 | . 15 22 Processor 7 | . 5 11 Energy Gun 9 | . 13 . Energy Cannon 14 | . 11 22 Peak Build Rating 14 | 7 14 14 Average Rating 11 | 4 10 14 On Entrance 7 | . 7 14 Avg Prop Armor Cover (%) . | . . . Naked Turns . | . . . Heaviest Build 13 | 9 13 13 Greatest Support 21 | 15 21 17 Greatest Overweight (x) 1 | . 1 . Average Overweight (x) . | . . . Largest Inventory Capacity 1 | 1 1 1 Average Capacity 1 | 1 1 1 Most Carried 1 | . 1 1 Average Carried . | . . 1 Final Capacity 1 | 1 1 1 Final Carried 1 | . 1 1 Class Distribution -------------------- 100% | Mutant Dominant Class ---------------- Mutant | -10/Materials Mutant | -10/Subcaves Resources | -11 -10 -10 ----------- Run | Yrd Mat Sub Matter Collected 390 | 141 249 . Remotely . | . . . Salvage Created 703 | 121 477 105 Parts 43 | 4 31 8 Haulers Intercepted 1 | . 1 . Recyclers Shooed 1 | 1 . . Parts Field Recycled . | . . . Retrieved Matter . | . . . Parts Self-Destructed 3 | . . 3 Prevented . | . . . Parts Restored . | . . . Kills | -11 -10 -10 ------- Run | Yrd Mat Sub Combat Hostiles Destroyed 17 | . 13 4 Guns 8 | . 8 . Cannons 8 | . 4 4 Classes Destroyed 9 | 2 6 1 Tunneler 1 | 1 . . Hauler 1 | . 1 . Recycler 1 | 1 . . Operator 1 | . 1 . Watcher 3 | . 3 . Swarmer 5 | . 3 2 Grunt 9 | . 9 . Sentry 1 | . . 1 Subdweller 2 | . 1 1 Best Kill Streak 4 | 1 4 3 Combat Bots Only 3 | . 3 3 Max Kills in Single Turn 1 | 1 1 1 Gunslinging . | . . . Exploded . | . . . Melee . | . . . Uniques/NPCs Destroyed . | . . . Combat | -11 -10 -10 -------- Run | Yrd Mat Sub Hostile Shots Fired 109 | . 64 45 Missed 24 | . 13 11 Hits 85 | . 51 34 Projectile 85 | . 51 34 Damage Taken 1311 | . 572 739 Core 1094 | . 474 620 Absorbed by Shields . | . . . Redirected to Core 744 | . 322 422 Core Remaining (%) 100 | 100 . . Volleys Fired 101 | 8 62 31 Largest 2 | 2 2 2 Hottest 120 | 90 120 120 Shots Fired 199 | 16 121 62 Gun 104 | 16 88 . Cannon 95 | . 33 62 Launcher . | . . . Special . | . . . Kinetic . | . . . Thermal 199 | 16 121 62 Explosive . | . . . Electromagnetic . | . . . Robot Hit Streak 11 | 4 11 9 Robot Miss Streak 4 | 3 4 1 Penetration Max . | . . . Secondary Targets . | . . . Shots Hit Robots 128 | 8 69 51 Core Hits 37 | 3 28 6 Critical Kills 1 | . 1 . Critical Parts Destroyed . | . . . Critical Strikes 4 | . 4 . Burn 3 | . 3 . Meltdown 1 | . 1 . Melee Attacks . | . . . Impact . | . . . Slashing . | . . . Piercing . | . . . Sneak Attacks . | . . . Combat Hostiles . | . . . Follow-up Attacks . | . . . Damage Inflicted 1238 | 91 906 241 Guns 735 | 91 644 . Cannons 503 | . 262 241 Explosions . | . . . Melee . | . . . Ramming . | . . . Kinetic . | . . . Thermal 1238 | 91 906 241 Explosive . | . . . Electromagnetic . | . . . Impact . | . . . Slashing . | . . . Piercing . | . . . Highest Corruption . | . . . Average Corruption . | . . . Corruption Purged . | . . . Corruption Blocked . | . . . Overload Shots . | . . . Overflow Damage 8 | . . 8 Projectiles 8 | . . 8 Explosions . | . . . Melee . | . . . Knockbacks . | . . . Impact . | . . . Kinetic . | . . . Secondary . | . . . Self-Inflicted Damage . | . . . Shots . | . . . Rammed . | . . . Targets Rammed . | . . . Kicked . | . . . Crushed . | . . . Highest Temperature 360 | 120 360 . Average Temperature 136 | 63 143 . Received Heat Transfer 267 | . 267 . Effects 4 | . 4 . Interference 2 | . 2 . Short Circuit 1 | . 1 . Damage (minor) 1 | . 1 . Siege Activations . | . . . Martial Activations . | . . . Shielding Activations . | . . . Robots Disrupted . | . . . Combat Hostiles . | . . . Robots Corrupted . | . . . Combat Hostiles . | . . . Parts Fried . | . . . Impact Corruptions . | . . . Robots Melted 1 | . 1 . Combat Hostiles 1 | . 1 . Parts Melted 9 | . 7 2 Heat Transferred 3182 | 236 2428 518 Parts Sabotaged . | . . . Parts Stolen . | . . . Parts Stripped . | . . . Power Chain Reactions . | . . . Alert | -11 -10 -10 ------- Run | Yrd Mat Sub Maximum Alert Level . | . . . Low Security (%) 100 | 100 100 . Level 1 . | . . . Level 2 . | . . . Level 3 . | . . . Level 4 . | . . . Level 5 . | . . . High Security . | . . . Max Security . | . . . Peak Influence 141 | 5 141 . Initial . | . . . Average 44 | 2 47 . Influence Increases 467 | 10 397 60 Destroy 0b10 Robot/C 300 | . 240 60 Destroy 0b10 Robot/NC 35 | 10 25 . Destroy Leader 58 | . 58 . Successful Hack 28 | . 28 . Destroy Structure 1 | . 1 . Lose Combat Pursuer 45 | . 45 . Influence Decreases 467 | 10 397 60 Time Decay 356 | 10 286 60 Purge Threat 111 | . 111 . Squads Dispatched . | . . . Investigation . | . . . Extermination . | . . . Reinforcement . | . . . Assault . | . . . Garrison . | . . . Intercept . | . . . Searches Triggered . | . . . Construction Impeded . | . . . Haulers Reinforced . | . . . Active Scanning Responses . | . . . Cargo Convoy Interrupts . | . . . Stealth | -11 -10 -10 --------- Run | Yrd Mat Sub Distress Signals 2 | . 2 . Communications Jammed . | . . . Distress Signals . | . . . Times Spotted 26 | . 22 4 Peak Tracking Total 5 | . 5 2 Tactical Retreats 3 | . 3 . Traps | -11 -10 -10 ------- Run | Yrd Mat Sub Traps Triggered 2 | . 1 1 Indirectly . | . . . Trap Hack Attempts . | . . . Triggered . | . . . Disarmed . | . . . Reprogrammed . | . . . Reused . | . . . Traps Extracted . | . . . Installed . | . . . Triggered . | . . . Machines | -11 -10 -10 ---------- Run | Yrd Mat Sub Machines Disabled . | . . . Max in Single Turn . | . . . Machines Repaired . | . . . Machines Dismantled . | . . . Machines Sabotaged . | . . . Overloaded Fab Kills . | . . . Hacking | -11 -10 -10 --------- Run | Yrd Mat Sub Machines Accessed 8 | . 8 . Terminals 6 | . 6 . Fabricators . | . . . Repair Stations . | . . . Recycling Units 2 | . 2 . Scanalyzers . | . . . Garrison Access . | . . . Total Hacks 18 | . 18 . Successful 11 | . 11 . Failed 7 | . 7 . Catastrophic 1 | . 1 . Database Lockouts . | . . . Manual 14 | . 14 . Terminals 14 | . 14 . Fabricators . | . . . Repair Stations . | . . . Recycling Units 4 | . 4 . Scanalyzers . | . . . Garrison Access . | . . . Terminal Hacks 1 | . 1 . Unreport Threat 1 | . 1 . Fabricator Hacks . | . . . Repair Station Hacks . | . . . Recycling Unit Hacks 2 | . 2 . Report Inventory 2 | . 2 . Scanalyzer . | . . . Garrison Access Hacks . | . . . Unauthorized Hacks 8 | . 8 . Terminals 7 | . 7 . Botnet 2 | . 2 . Skim 5 | . 5 . Fabricators . | . . . Repair Stations . | . . . Recycling Units 1 | . 1 . Reject 1 | . 1 . Scanalyzers . | . . . Garrison Access . | . . . Data Cores Recovered 1 | . 1 . Used . | . . . Hacking Detections 5 | . 5 . Full Trace Events . | . . . Feedback Events . | . . . Feedback Blocked . | . . . Robot Schematics Acquired . | . . . Robots Built . | . . . Authchips . | . . . Time . | . . . Total Robot Build Rating . | . . . Part Schematics Acquired . | . . . Parts Built . | . . . Authchips . | . . . Time . | . . . Total Part Build Rating . | . . . Part Studies Acquired . | . . . Parts Repaired . | . . . Time . | . . . Parts Recycled . | . . . Recycled Matter . | . . . Retrieved Matter . | . . . Retrieved Components . | . . . Parts Scanalyzed . | . . . Part Schematics Acquired . | . . . Parts Damaged . | . . . Bothacking | -11 -10 -10 ------------ Run | Yrd Mat Sub Used RIF Installer . | . . . Robots Hacked . | . . . Non-combat . | . . . Combat . | . . . Robot Hacks Applied . | . . . Relay Couplers Released . | . . . Fabnet Peak Effective % . | . . . Robots Rewired . | . . . Allies Hacked . | . . . Hacks Repelled . | . . . Allies | -11 -10 -10 -------- Run | Yrd Mat Sub Total Allies . | . . . Largest Group . | . . . Highest-Rated Group . | . . . Highest-Rated Ally . | . . . Total Orders . | . . . Ally Attacks . | . . . Total Damage . | . . . Kills . | . . . Allies Corrupted . | . . . Allies Melted . | . . . Intel | -11 -10 -10 ------- Run | Yrd Mat Sub Active Infowar (turns) 1319 | 11 934 374 Terrain 1319 | 11 934 374 Robot Analysis Total . | . . . Derelict Logs Recovered . | . . . Drone Launches . | . . . Drone Recoveries . | . . . Exploration | -11 -10 -10 ------------- Run | Yrd Mat Sub Turns Passed 1369 | 61 934 374 Spaces Moved 909 | 31 762 116 Core 43 | 2 41 . Treads . | . . . Legs . | . . . Wheels 165 | 29 136 . Hover 701 | . 585 116 Flight . | . . . Fastest Speed 50 | 50 56 56 Average Speed 63 | 78 64 56 Slowest Speed 100 | 80 100 56 Overloaded Moves . | . . . Propulsion Burnouts . | . . . Robots Hopped . | . . . Potential Cave-ins . | . . . Cave-ins Triggered . | . . . Exploration Rate (%) 37 | 3 98 10 Regions Visited 2 Branch Regions 1 Pre-discovered Areas 1 | . 1 . Known Exits Taken . | . . . Unknown Exits Taken 2 | 1 1 . Scrap Searched 4 | . . 4 Spaces Dug . | . . . Terrain Destroyed . | . . . Melee . | . . . Projectile . | . . . AOE . | . . . Terrain Rammed . | . . . Walls Destroyed . | . . . Machines Disabled . | . . . Actions | -11 -10 -10 --------- Run | Yrd Mat Sub Total 1495 | 49 1083 363 Wait 429 | 6 214 209 Move 907 | 30 761 116 Hop . | . . . Pick Up . | . . . Fast Attach 16 | 5 11 . Attach . | . . . Detach 3 | . 3 . Swap 3 | . 3 . Drop 7 | . 7 . Fire 101 | 8 62 31 Melee . | . . . Ram . | . . . Kick . | . . . Crush . | . . . Escape Stasis . | . . . Rewire . | . . . Trap . | . . . Miscellaneous 29 | . 22 7 Route ------- -11/Scrapyard -10/Materials (discovered 5 exits: [*Mat x3] / [*Min] / [*Sub]) -10/Subcaves (discovered 2 exits: Mat x2) History --------- Turn | Location | Event 1 | -11/Scrapyard | Upgraded with Propulsion slot (x1) 1 | -11/Scrapyard | Upgraded with Utility slot (x2) 1 | -11/Scrapyard | Upgraded with Weapon slot (x1) 31 | -11/Scrapyard | Discovered new exit (range 14) 62 | -11/Scrapyard | Entered Materials 305 | -10/Materials | Build established: Mutant 348 | -10/Materials | Discovered new exit (range 15) 615 | -10/Materials | Discovered new exit (range 16) 652 | -10/Materials | Discovered new exit (range 10) 760 | -10/Materials | Discovered new exit (range 15) 762 | -10/Materials | Derelicts attacked the area 797 | -10/Materials | Reached level 2 801 | -10/Materials | Upgraded with Utility slot (x1) 841 | -10/Materials | Discovered new exit (range 16) 951 | -10/Materials | Learned 2 Storage zone layouts 996 | -10/Materials | Entered Subcaves 997 | -10/Subcaves | Identified exit to Materials 1307 | -10/Subcaves | Core integrity fell below 50% 1331 | -10/Subcaves | Core integrity fell below 20% 1370 | -10/Subcaves | Destroyed by Piercing Trap Last Messages --------------- 01252_ Found Flamer. 01252_ Found 52 Matter. 01264_ Subatomizers dissect the Flamer. 01349_ Sub. Monowheel melted. 01349_ Sub. Machine Gun melted. 01349_ ZN-C0N(R) destroyed. 01359_ Subatomizers dissect the Flamer. 01367_ Searching scrap... 01367_ Found Flamer. 01367_ Found 49 Matter. 01368_ Searching scrap... 01368_ Found Sub. Monowheel. 01368_ Found 48 Matter. 01369_ Searching scrap... 01369_ Found Riot Gun. 01369_ Found Sub. Shrapnel Launcher. 01369_ Found 66 Matter. 01370_ Triggered Piercing Trap. 01370_ Spikes shoot up from the floor. 01370_ Critical hit (Impale). Map ----- +----------------------------------------------------+ | | | | | | | | | | | | | | | | | | | | | | | | | | | | | | | | | | | ?????????????##??#??###########################??? | | ????????????#???#?#?##############?#########??#??? | | ??????????#????????##?###############?#######??#?? | | ??????????????##??##############################?? | | ???????????????#?#######< "##############?#? | | ?????????????#???##### < << ###############? | | ?????????????###???### |% ####" "############??# | | ????????????###?#####<<[ |<##### "#############?? | | ?????????????########<<%=@<##### "##############? | | ????????????###??#####]<<<#######&!##############? | | ????????????##??#?#############"&%*##############? | | ???????????##?#################""!&##############? | | ?????????????##?#?#### " # ################ | | ?????????#??#??#######"$ ##"%"############### | | ??????????????#########" ## ##|"############### | | ?????????????#####?########" #### ######### #### | | ?????????????? #### ### " ## ######## ### | | ???????????? ?? ## ######### ### | | ???????????? ? ## ######## #### | | ????????????? # ### ####### #### | | ??????????????### ##### ####### ##### | | ??????????????### ## # ## ### # ##### | | ?????????????#### ?### ##### | | ??????????????####?# ### | | ??????????????##? ### # #### # ## #### ## | | ???????????????####### ############## ######## | | ???????????????? #?## # ############## ####### | | ???????????????##?## ############## ###### | | ????????????????#??# ################ ###### | | ???????????????????#?#?############### ##### | | ??????????????????#??####?####?###### #### | | ????????????????????################ ## | | ?????????????????????####?######### | +----------------------------------------------------+ Best States ------------- Heat Dissipation 63 Energy Generation 14 Energy Capacity 250 Matter Stores 300 Matter Capacity 300 Sight Range 16 Robot Scan Range 4 Terrain Scan Range 16 Terrain Scan Density 310 Evasion (%) 53 Targeting Accuracy 10 Item Schematics ----------------- None Robot Schematics ------------------ None Fabricated ------------ Nothing Repaired ---------- Nothing Studied --------- None Alien Tech Used ----------------- None Achievements -------------- None Challenges ------------ None RPGLIKE | -11 -10 -10 --------- Run | Yrd Mat Sub Levels Raised 1 | . 1 . XP Earned 5870 | 3000 1570 1300 XP Spent 4465 | 2970 1495 . Upgrades 16 | 10 6 . Propulsion Slot 1 | 1 . . Utility Slot 3 | 2 1 . Weapon Slot 1 | 1 . . Heat Dissipation 4 | . 4 . Mass Support 1 | 1 . . Inventory Capacity 1 | 1 . . Sensor Range 2 | 1 1 . Terrain Scan Density 3 | 3 . . Protomatter Created 251 | . 185 66 Integrity Restored 594 | . 442 152 Core 488 | . 379 109 Parts 106 | . 63 43 Protomatter Decayed 36 | . 36 . Game ------ Seed MinesnifferThunderMatter Manual? 0 Play Time 00:24:18 Cumulative 84.1 hours Start 2025.11.18 @ 16:43:54 End 2025.11.18 @ 16:57:05 Sessions 1 Manual Loads 0 Difficulty Rogue Special Mode Winter2019/RPGLIKE Game No. 78 Rogue 78 Adventurer 0 Explorer 0 Win Type - Total 0 Types 0/0/0/0/0/0/0/0/0/0 Lore% 59 Gallery% 38 Achievement% 36 Wizard Run 0 Options --------- Layout 0 ASCII 0 Keyboard 0 Movement Mouse Keybinds 0 Fullscreen 2 Font 24/Smallcaps Map View 76x50 Zoom Use 0% Tactical HUD 1 Map Filters NONE Filters NONE Steam 1 RUN: e6edc8aa-e394-4a0f-90fd-b86c2ad341b0